bitfinex/quotes_ETHUSD_20251006
["timestamp","ask_amount","ask_price","bid_price","bid_amount"]
[1759756032111,0.11,4585.5,4585.1,0.02180977]
[1759756032299,2.18085796,4585.4,4585.0,0.02181025]
[1759756032613,2.18083482,4585.4,4585.1,0.4339]
[1759756032982,0.11,4585.5,4585.1,0.4339]
[1759756033608,0.0012,4585.5,4585.2,0.4339]
[1759756034104,2.18198778,4585.5,4585.2,0.4339]
[1759756034406,0.0012,4585.5,4585.2,0.73645102]
[1759756035112,0.0012,4585.5,4585.2,0.30255102]
[1759756035408,2.18083482,4585.4,4585.0,0.02181025]
[1759756035578,2.18202651,4585.5,4585.1,0.4339]
[1759756035779,0.0012,4585.5,4585.2,0.4339]
[1759756036015,0.0012,4585.5,4585.3,0.56450882]
[1759756036187,2.18200384,4585.5,4585.3,0.1088]
[1759756036391,2.18083482,4585.4,4585.3,0.1088]
[1759756036584,2.18083482,4585.4,4585.3,2.5698]
[1759756037105,2.18199494,4585.5,4585.3,2.5698]
[1759756037307,2.18083482,4585.4,4585.3,2.5698]
[1759756037605,2.18199776,4585.5,4585.3,2.5698]
[1759756037795,0.0012,4585.5,4585.3,2.5698]
[1759756037996,0.0012,4585.5,4585.4,0.45570834]
[1759756038586,0.0012,4585.5,4585.4,2.63654316]
[1759756038793,0.0012,4585.5,4585.4,0.45570834]
[1759756039512,2.18083482,4585.4,4585.3,0.40917]
[1759756039725,2.61023482,4585.4,4585.3,0.1088]
[1759756039892,2.18088238,4585.3,4585.1,2.461]
[1759756040215,2.18092994,4585.2,4585.1,2.461]
[1759756040796,2.1808962,4585.3,4585.1,2.461]
[1759756041002,2.18087632,4585.4,4585.1,2.461]
[1759756041201,0.0012,4585.5,4585.1,2.461]
[1759756041407,2.1808938,4585.3,4585.1,2.461]
[1759756042295,0.0012,4585.5,4585.2,0.02180929]
[1759756042512,0.0012,4585.5,4585.2,0.45570929]
[1759756042829,0.0012,4585.5,4585.2,0.02180929]
[1759756043057,0.0012,4585.5,4585.2,0.45570929]
[1759756044109,0.0012,4585.5,4585.2,0.38987769]
[1759756044308,0.0012,4585.5,4585.4,0.1088]
[1759756045196,0.0004,4585.5,4585.4,0.5427]
[1759756046229,0.0004,4585.5,4585.4,0.56450834]
[1759756047828,0.0004,4585.5,4585.4,0.5427]
[1759756048229,0.0004,4585.5,4585.4,1.12195442]
[1759756049142,0.0004,4585.5,4585.4,1.10014608]
[1759756049997,0.0004,4585.5,4585.4,0.1088]
[1759756050230,0.0004,4585.5,4584.6,0.001]
[1759756050231,2.18096433,4585.2,4584.6,0.001]
[1759756050433,2.18096433,4585.2,4585.1,0.1088]
[1759756050600,0.4298,4585.5,4585.1,2.5708]
[1759756050802,2.61024494,4585.4,4585.1,2.5708]
[1759756051328,0.4294,4585.4,4585.1,2.5708]
[1759756051539,0.0004,4585.5,4585.2,0.02180929]
[1759756051715,2.61059729,4585.5,4585.1,2.5708]
[1759756051914,0.4298,4585.5,4585.1,2.5708]
[1759756052117,2.18083482,4585.4,4585.1,2.5708]
[1759756053355,2.18092994,4585.2,4585.1,2.5708]
[1759756054418,2.65002994,4585.2,4585.1,0.1088]
[1759756054612,3.13315642,4585.2,4585.1,6.68615185]
[1759756054827,3.13315642,4585.2,4585.1,1.3661063]
[1759756054828,8.10395642,4585.2,4585.1,1.3661063]
[1759756055025,8.96194202,4585.2,4585.1,1.3661063]
[1759756055230,8.96192455,4585.2,4585.1,1.3661063]
[1759756056923,8.96192455,4585.2,4585.1,1.3671063]
[1759756057523,6.49992455,4585.2,4585.1,1.3671063]
[1759756057846,8.10395642,4585.2,4585.1,1.3671063]
[1759756058053,7.63485642,4585.2,4585.1,1.3671063]
[1759756058621,8.10975642,4585.2,4585.1,1.3671063]
[1759756060148,7.63485642,4585.2,4585.1,1.3671063]
[1759756060653,5.06405642,4585.2,4585.1,1.3671063]
[1759756061855,5.53895642,4585.2,4585.1,1.3671063]
[1759756062251,5.05582994,4585.2,4585.1,1.3671063]
[1759756063934,4.58092994,4585.2,4585.1,1.3671063]
[1759756064257,2.18092994,4585.2,4585.1,1.3671063]
[1759756064847,2.5708,4585.3,4585.1,1.3671063]
[1759756065053,2.18092994,4585.2,4585.1,1.3671063]
[1759756065436,0.1088,4585.3,4585.1,1.3671063]
[1759756065755,0.0004,4585.5,4585.2,0.429]
[1759756066064,2.18119595,4585.5,4585.3,0.429]
[1759756066233,0.0004,4585.5,4585.1,1.4759063]
[1759756066436,0.0004,4585.5,4585.4,0.429]
[1759756068554,0.0004,4585.5,4585.4,0.5378]
[1759756068954,2.18118726,4585.5,4585.4,0.1088]
[1759756069143,0.0004,4585.5,4585.4,0.1088]
[1759756069740,0.0008,4585.6,4585.4,0.1088]
[1759756070135,0.0008,4585.6,4585.4,0.5378]
[1759756070350,2.18156759,4585.6,4585.4,0.5378]
[1759756071154,2.18154342,4585.6,4585.4,0.1088]
[1759756071759,0.0008,4585.6,4585.4,0.1088]
[1759756071956,0.0008,4585.6,4585.4,0.5378]
[1759756072760,0.0008,4585.6,4585.5,0.429]
[1759756075563,0.0008,4585.6,4585.5,2.89]
[1759756075764,0.0008,4585.6,4585.5,3.21168787]
[1759756075941,0.0008,4585.6,4585.5,5.39247513]
[1759756076260,0.0008,4585.6,4585.5,5.626425]
[1759756077037,0.0008,4585.6,4585.5,5.37066726]
[1759756077771,0.0008,4585.6,4585.5,3.29868]
[1759756077969,0.0008,4585.6,4585.5,5.47946726]
[1759756078262,0.0008,4585.6,4585.5,0.83768]
[1759756078565,0.0008,4585.6,4585.5,5.18258726]
[1759756078962,0.0008,4585.6,4585.5,3.0018]
[1759756079166,0.0008,4585.6,4585.5,5.18258726]
[1759756079841,0.0008,4585.6,4585.5,3.0018]
[1759756080060,0.0008,4585.6,4585.5,2.5728]
[1759756080258,0.0008,4585.6,4585.5,3.0018]
[1759756080463,0.0008,4585.6,4585.5,5.65795987]
[1759756081251,0.0008,4585.6,4585.5,3.47717261]
[1759756082166,0.0008,4585.6,4585.5,0.1088]
[1759756082366,0.0008,4585.6,4585.5,2.5728]
[1759756082546,0.0008,4585.6,4585.5,3.0018]
[1759756083644,0.0008,4585.6,4585.5,2.5728]
[1759756084543,2.1815397,4585.6,4585.5,0.1088]
[1759756084742,2.6237397,4585.6,4585.5,2.5728]
[1759756085069,0.0008,4585.6,4585.5,2.5728]
[1759756086149,2.6237397,4585.6,4585.5,0.1088]
[1759756086338,2.180839,4585.4,4585.1,1.4759063]
[1759756086668,0.4422,4585.4,4585.3,2.465]
[1759756087667,2.62303482,4585.4,4585.3,2.465]
[1759756088157,0.4422,4585.4,4585.3,2.465]
[1759756088967,2.18079651,4585.5,4585.3,2.465]
[1759756089483,2.62299651,4585.5,4585.3,2.465]
[1759756089848,0.0008,4585.6,4585.3,2.465]
[1759756090048,0.0008,4585.6,4585.4,0.47420834]
[1759756090276,0.0008,4585.6,4585.4,0.4524]
[1759756090463,0.0008,4585.6,4585.5,0.1088]
[1759756090645,0.0008,4585.6,4585.5,0.5612]
[1759756090850,0.0008,4585.6,4585.5,1.08190447]
[1759756091657,0.0008,4585.6,4585.5,3.26269173]
[1759756091858,0.0008,4585.6,4585.5,3.2844996]
[1759756092253,0.0008,4585.6,4585.5,3.26269173]
[1759756092950,0.0008,4585.6,4585.5,0.62950447]
[1759756093151,0.0008,4585.6,4585.5,0.1088]
[1759756093357,0.0008,4585.6,4585.5,2.5738]
[1759756093861,0.0008,4585.6,4585.5,5.20698726]
[1759756094077,0.002,4585.8,4585.6,2.18070919]
[1759756094282,0.002,4585.8,4585.7,0.02180692]
[1759756094455,0.002,4585.8,4585.7,2.65489907]
[1759756094853,0.002,4585.8,4585.7,3.37403801]
[1759756095047,0.002,4585.8,4585.7,5.83903801]
[1759756098381,0.002,4585.8,4585.7,5.38663801]
[1759756098578,0.002,4585.8,4585.7,0.74094586]
[1759756098776,0.002,4585.8,4585.7,4.66749907]
[1759756098980,0.002,4585.8,4585.7,5.09809215]
[1759756101454,0.002,4585.8,4585.3,0.001]
[1759756101677,0.002,4585.8,4585.7,2.18069215]
[1759756101983,0.002,4585.8,4585.7,4.66749907]
[1759756102186,0.002,4585.8,4585.7,4.64569215]
[1759756102960,0.002,4585.8,4585.7,5.08902233]
[1759756103684,0.002,4585.8,4585.7,5.54142233]
[1759756104385,0.002,4585.8,4585.7,5.08902233]
[1759756105889,0.002,4585.8,4585.3,0.001]
[1759756106062,0.002,4585.8,4585.5,2.18075228]
[1759756106272,0.002,4585.8,4585.6,2.18073925]
[1759756106473,0.002,4585.8,4585.7,2.48580692]
[1759756107766,0.002,4585.8,4585.7,2.464]
[1759756108162,0.002,4585.8,4585.3,0.001]
[1759756108367,2.62289398,4585.7,4585.4,2.464]
[1759756108566,0.4422,4585.6,4585.4,2.464]
[1759756108799,0.002,4585.8,4585.4,2.5728]
[1759756108968,0.002,4585.8,4585.5,0.02180787]
[1759756109162,0.002,4585.8,4585.6,2.464]
[1759756110779,0.002,4585.8,4585.7,2.464]
[1759756112653,0.4442,4585.8,4585.7,2.464]
[1759756113194,0.002,4585.8,4585.7,2.464]
[1759756113603,0.002,4585.8,4585.7,5.00217289]
[1759756113894,0.002,4585.8,4585.7,5.44647289]
[1759756117160,0.002,4585.8,4585.7,5.00217289]
[1759756117361,0.002,4585.8,4585.7,0.1088]
[1759756117591,0.002,4585.8,4585.7,2.5728]
[1759756117793,0.002,4585.8,4585.7,4.75349215]
[1759756118210,0.002,4585.8,4585.7,5.21909215]
[1759756118690,0.0012,4585.8,4585.7,5.21909215]
[1759756118890,0.0012,4585.8,4585.7,5.95917835]
[1759756121384,0.0012,4585.8,4585.7,6.21493609]
[1759756121794,0.0012,4585.8,4585.7,8.61493609]
[1759756125725,0.0012,4585.8,4585.7,8.93747125]
[1759756125919,0.0012,4585.8,4585.7,15.26584125]
[1759756126119,0.0012,4585.8,4585.7,14.62700425]
[1759756126304,0.0012,4585.8,4585.7,17.41701025]
[1759756126501,0.0012,4585.8,4585.7,16.92207725]
[1759756126825,1e-08,4586.3,4586.2,5.2140544]
[1759756127027,1e-08,4586.3,4586.2,8.78106968]
[1759756127226,2.17893406,4589.4,4586.3,3.0336]
[1759756127406,0.4663,4588.2,4587.7,2.17973259]
[1759756127607,0.4663,4588.1,4587.9,0.1088]
[1759756127827,0.1088,4588.4,4588.0,2.463]
[1759756128010,2.28824303,4588.4,4588.0,2.463]
[1759756128206,0.2288243,4588.3,4588.0,2.463]
[1759756128526,0.4663,4588.2,4588.0,2.463]
[1759756129029,0.4663,4588.1,4588.0,2.463]
[1759756131047,0.4683,4588.1,4588.0,2.463]
[1759756132044,2.64785144,4588.1,4587.9,0.1088]
[1759756132219,2.64785144,4588.1,4588.0,2.462]
[1759756132430,0.96191088,4588.1,4588.0,2.462]
[1759756132737,0.002,4588.1,4588.0,2.462]
[1759756133103,0.4683,4588.1,4588.0,2.462]
[1759756133814,2.64785144,4588.1,4587.9,0.1088]
[1759756134009,0.4683,4588.1,4587.9,2.331]
[1759756134210,0.26477869,4588.0,4587.9,2.331]
[1759756134448,0.002,4588.1,4587.9,2.331]
[1759756135247,0.002,4588.1,4587.9,2.4398]
[1759756138370,0.4663,4588.0,4587.9,2.4398]
[1759756138843,0.002,4588.1,4587.9,2.4398]
[1759756140053,0.002,4588.1,4587.9,0.1088]
[1759756140234,0.4683,4588.1,4588.0,2.463]
[1759756141364,0.002,4588.1,4588.0,2.463]
[1759756142032,0.4683,4588.1,4588.0,2.463]
[1759756142548,0.002,4588.1,4588.0,2.463]
[1759756142752,0.002,4588.1,4588.0,4.66439493]
[1759756142924,0.002,4588.1,4588.0,4.64259895]
[1759756143130,0.0012,4588.1,4588.0,4.64259895]
[1759756143545,0.0012,4588.1,4588.0,2.463]
[1759756143761,0.0012,4588.1,4588.0,4.66439493]
[1759756143949,0.0012,4588.1,4588.0,4.64259895]
[1759756144761,0.0012,4588.1,4587.9,0.1088]
[1759756144931,0.0012,4588.1,4588.0,2.463]
[1759756145630,0.0012,4588.1,4588.0,4.64259895]
[1759756146262,0.0012,4588.1,4588.0,5.81310747]
[1759756146764,0.4599,4588.1,4588.0,0.73650852]
[1759756146967,0.4599,4588.1,4588.0,2.465]
[1759756147164,0.4599,4588.1,4587.9,0.1088]
[1759756147342,0.0012,4588.1,4588.0,2.465]
[1759756148072,0.4599,4588.1,4588.0,2.465]
[1759756148275,2.17959895,4588.0,4587.9,2.465]
[1759756148446,2.63829895,4588.0,4587.9,2.465]
[1759756149348,0.95148109,4588.0,4587.5,0.1088]
[1759756149570,0.1088,4587.6,4586.9,0.1088]
[1759756149873,2.18007504,4587.0,4586.7,1.755]
[1759756150046,0.4587,4587.5,4586.3,0.001]
[1759756150047,0.4587,4586.9,4586.3,0.001]
[1759756150246,0.4587,4586.9,4586.4,2.465]
[1759756150247,2.28903246,4586.7,4586.4,2.465]
[1759756150441,2.28903246,4586.7,4586.3,0.001]
[1759756150442,0.4587,4586.6,4586.3,2.466]
[1759756150669,2.63896469,4586.6,4586.3,2.466]
[1759756150880,0.4587,4586.5,4586.3,2.466]
[1759756151252,0.1088,4586.7,4586.3,0.25848]
[1759756151442,0.4587,4586.9,4586.4,2.5738]
[1759756151639,0.4587,4586.8,4586.4,2.5738]
[1759756151946,0.1088,4587.2,4586.5,0.02180311]
[1759756152470,2.63844848,4587.7,4586.6,2.61426424]
[1759756152661,0.1088,4587.5,4586.8,0.1088]
[1759756152975,2.6385885,4587.4,4586.8,0.1088]
[1759756153179,2.6385885,4587.4,4586.9,2.465]
[1759756153339,0.4587,4587.4,4586.9,2.465]
[1759756153543,2.17993423,4587.3,4586.9,2.465]
[1759756153745,2.17994765,4587.3,4586.9,2.465]
[1759756153969,2.18011825,4587.0,4586.3,0.001]
[1759756154273,2.74749202,4587.2,4586.5,0.1088]
[1759756154648,0.1088,4587.2,4586.6,0.02180264]
[1759756155072,0.5675,4587.2,4586.6,0.02180264]
[1759756155273,2.18007882,4587.0,4586.5,0.1088]
[1759756155575,0.4587,4586.9,4586.5,0.1088]
[1759756155776,2.18026424,4586.6,4586.5,0.1088]
[1759756156074,0.4587,4586.6,4586.5,2.465]
[1759756157088,0.4587,4586.6,4586.4,2.465]
[1759756157372,0.1088,4586.9,4586.4,2.465]
[1759756158473,2.2887489,4587.3,4586.5,0.45580311]
[1759756158672,2.2887489,4587.3,4586.6,0.1088]
[1759756158867,0.1088,4587.3,4586.6,0.1088]
[1759756159202,2.17997907,4587.2,4586.6,0.1088]
[1759756159343,2.18003374,4587.1,4586.6,0.1088]
[1759756159778,2.18009114,4587.0,4586.6,0.1088]
[1759756160147,2.18003113,4587.1,4586.6,0.1088]
[1759756160779,2.2887352,4587.3,4586.6,0.1088]
[1759756161084,0.1088,4587.3,4586.7,0.02180216]
[1759756161769,2.28877433,4587.3,4586.7,0.02180216]
[1759756161967,2.18002667,4587.1,4586.6,0.1088]
[1759756162150,2.17999598,4587.2,4586.6,0.13060264]
[1759756162350,2.17999598,4587.2,4586.6,0.56460264]
[1759756162551,2.18003122,4587.1,4586.6,0.5428]
[1759756162751,0.1088,4587.3,4586.6,0.5428]
[1759756162752,2.17998997,4587.2,4586.6,0.5428]
[1759756162963,0.1088,4587.3,4586.7,0.02180216]
[1759756162964,2.28873643,4587.3,4586.7,0.02180216]
[1759756163295,0.1088,4587.3,4586.7,0.02180216]
[1759756163494,0.4587,4587.6,4586.7,0.02180216]
[1759756163495,0.1088,4587.5,4586.7,0.02180216]
[1759756163682,2.17993623,4587.3,4586.7,0.02180216]
[1759756163889,0.1088,4587.5,4586.6,0.5428]
[1759756163890,2.17998619,4587.2,4586.6,0.5428]
[1759756164090,2.18008089,4587.0,4586.6,0.1088]
[1759756164989,2.18013101,4586.9,4586.6,0.1088]
[1759756165397,2.18007102,4587.1,4586.6,0.1088]
[1759756165574,2.18010973,4587.0,4586.6,0.1088]
[1759756165771,0.4587,4587.2,4586.6,0.1088]
[1759756165971,0.4587,4587.2,4586.3,0.001]
[1759756166171,0.4587,4587.2,4586.4,1.402]
[1759756166372,2.18031178,4586.5,4586.4,1.402]
[1759756166574,2.81338899,4587.6,4587.5,8.47833584]
[1759756166904,3.31269729,4587.6,4587.5,8.47833584]
[1759756167084,3.77139729,4587.6,4587.5,8.47833584]
[1759756167282,3.97417571,4587.6,4587.5,8.47833584]
[1759756167487,3.77059729,4587.6,4587.5,8.47833584]
[1759756168186,3.9733683,4587.6,4587.5,8.47833584]
[1759756168386,3.97336813,4587.6,4587.5,8.47833584]
[1759756169980,6.43836813,4587.6,4587.5,8.47833584]
[1759756172424,6.43845265,4587.6,4587.5,8.47833584]
[1759756175215,5.93914435,4587.6,4587.5,8.47833584]
[1759756176018,6.04794435,4587.6,4587.5,8.47833584]
[1759756176919,5.39294435,4587.6,4587.5,8.47833584]
[1759756177521,4.95564435,4587.6,4587.5,8.47833584]
[1759756178918,5.39294435,4587.6,4587.5,8.47833584]
[1759756181423,6.15020818,4587.6,4587.5,8.47833584]
[1759756181627,6.78380818,4587.6,4587.5,8.47833584]
[1759756186731,6.34650818,4587.6,4587.5,8.47833584]
[1759756187459,6.34650818,4587.6,4587.5,8.47933584]
[1759756187745,6.78580818,4587.6,4587.5,8.47933584]
[1759756191136,6.34850818,4587.6,4587.5,8.47933584]
[1759756191340,6.34750818,4587.6,4587.5,8.47933584]
[1759756191956,6.34742492,4587.6,4587.5,8.47933584]
[1759756192459,6.78472492,4587.6,4587.5,8.47933584]
[1759756194857,3.25142492,4587.6,4587.5,8.47933584]
[1759756195042,4.95916109,4587.6,4587.5,8.92453584]
[1759756195641,4.95921639,4587.6,4587.5,8.92453584]
[1759756198573,0.3144274,4587.6,4587.5,8.92453584]
[1759756198774,2.49421639,4587.6,4587.5,8.92453584]
[1759756200472,2.29058899,4587.6,4587.5,10.06358942]
[1759756201086,0.1108,4587.6,4587.5,10.06358942]
[1759756201272,0.002,4587.6,4587.5,10.06358942]
[1759756202771,0.002,4587.6,4587.5,12.35222593]
[1759756207486,0.002,4587.6,4587.5,14.75222593]
[1759756215697,0.002,4587.6,4587.5,17.21722593]
[1759756216474,0.0012,4587.6,4587.5,17.21722593]
[1759756218389,0.0012,4587.6,4587.5,17.47298367]
[1759756218722,0.0012,4587.6,4587.5,18.12707649]
[1759756219380,0.0012,4587.6,4587.5,17.87351875]
[1759756220630,0.0012,4587.6,4587.5,12.78128224]
[1759756220777,0.0012,4587.6,4587.5,17.42611875]
[1759756221408,0.0012,4587.6,4587.5,15.24628224]
[1759756221608,0.0012,4587.6,4587.5,22.34776661]
[1759756221776,0.0012,4587.6,4587.5,21.69367379]
[1759756221976,0.0012,4587.6,4587.5,23.8735103]
[1759756222177,0.0012,4587.6,4587.5,19.22867379]
[1759756222422,0.0012,4587.6,4587.5,22.73445672]
[1759756222773,0.0012,4587.6,4587.5,20.55462021]
[1759756223206,0.0012,4587.6,4587.5,18.08962021]
[1759756223586,0.4744,4587.6,4587.5,20.55562021]
[1759756223996,0.0012,4587.6,4587.5,20.55562021]
[1759756225912,0.0012,4587.6,4587.5,22.73545672]
[1759756226111,0.0012,4587.6,4587.5,20.55562021]
[1759756227592,0.0012,4587.6,4587.5,22.73545672]
[1759756227788,0.0012,4587.6,4587.5,24.90394853]
[1759756227988,0.0012,4587.6,4587.5,22.43794853]
[1759756228193,0.0012,4587.6,4587.5,24.90294853]
[1759756229812,0.0012,4587.6,4587.5,24.90394853]
[1759756235910,0.0012,4587.6,4587.5,24.79514853]
[1759756236100,0.0012,4587.6,4587.5,24.90394853]
[1759756236304,0.0012,4587.6,4587.5,25.36354853]
[1759756236502,0.0012,4587.6,4587.5,24.90394853]
[1759756237203,0.0012,4587.6,4587.5,25.36354853]
[1759756237921,0.0012,4587.6,4587.5,26.58514228]
[1759756238137,0.0012,4587.6,4587.5,24.11914228]
[1759756238345,0.0012,4587.6,4587.5,26.58914228]
[1759756238549,0.0012,4587.6,4587.5,24.11914228]
[1759756238839,0.0012,4587.6,4587.5,26.59014228]
[1759756239914,0.0012,4587.6,4587.5,21.40744045]
[1759756240114,0.0012,4587.6,4587.5,23.87744045]
[1759756241116,0.0004,4587.6,4587.5,23.87744045]
[1759756241515,0.0004,4587.6,4587.5,23.62168271]
[1759756247250,0.0004,4587.6,4587.5,21.15168271]
[1759756247544,0.0004,4587.6,4587.5,23.62168271]
[1759756250428,0.0004,4587.6,4587.5,26.65528271]
[1759756250739,0.0004,4587.6,4587.5,27.22274228]
[1759756251546,0.0004,4587.6,4587.5,26.45044045]
[1759756251752,0.0004,4587.6,4587.5,26.91004045]
[1759756252550,0.0004,4587.6,4587.5,24.44104045]
[1759756252754,0.0004,4587.6,4587.5,26.91004045]
[1759756254254,0.0004,4587.6,4587.5,24.44104045]
[1759756254562,0.0004,4587.6,4587.5,26.90904045]
[1759756255139,0.0004,4587.6,4587.5,24.44104045]
[1759756255344,0.0004,4587.6,4587.5,26.65328271]
[1759756257474,0.0004,4587.6,4587.5,26.19468271]
[1759756258145,0.0004,4587.6,4587.5,26.65428271]
[1759756258347,0.0004,4587.6,4587.5,24.18528271]
[1759756258656,0.0004,4587.6,4587.5,26.65428271]
[1759756259354,0.0004,4587.6,4587.5,23.98144045]
[1759756259546,0.0004,4587.6,4587.5,26.91004045]
[1759756261463,0.0004,4587.6,4587.5,24.44104045]
[1759756261665,0.0004,4587.6,4587.5,26.91004045]
[1759756262046,0.0004,4587.6,4587.5,24.44104045]
[1759756262246,0.0004,4587.6,4587.5,26.90904045]
[1759756262457,0.0004,4587.6,4587.5,24.44104045]
[1759756262657,0.0004,4587.6,4587.5,26.90904045]
[1759756264052,0.0004,4587.6,4587.5,24.44104045]
[1759756264256,0.0004,4587.6,4587.5,23.98144045]
[1759756264463,0.4603,4587.6,4587.5,26.19368271]
[1759756264663,0.0004,4587.6,4587.5,26.19368271]
[1759756264974,0.0004,4587.6,4587.5,23.09208271]
[1759756265141,0.0004,4587.6,4587.5,25.56008271]
[1759756265555,0.4595,4587.9,4587.8,2.17969397]
[1759756265841,2.17912399,4589.0,4588.0,2.17958755]
[1759756266145,0.20366097,4588.9,4588.1,4.64754924]
[1759756266363,0.1088,4589.1,4588.4,0.1088]
[1759756266568,0.20366351,4589.0,4588.5,4.64734729]
[1759756266753,0.20366351,4589.0,4588.6,0.02179313]
[1759756266953,4.22,4589.6,4588.6,0.02179313]
[1759756266954,0.1088,4589.4,4588.7,2.5768]
[1759756267159,0.63654729,4589.3,4588.8,0.02179218]
[1759756267358,0.20366729,4589.2,4588.9,2.469]
[1759756267545,0.66356729,4589.2,4588.9,2.469]
[1759756267746,0.43288,4589.3,4588.9,2.469]
[1759756267945,0.6635819,4589.2,4588.9,2.469]
[1759756268169,0.58042619,4589.1,4588.9,2.469]
[1759756268376,0.12052619,4589.1,4588.9,2.469]
[1759756268575,0.4599,4589.0,4588.9,2.469]
[1759756269277,0.4599,4589.0,4588.9,4.64817147]
[1759756269478,0.1088,4589.6,4588.9,2.469]
[1759756269666,0.4599,4589.2,4589.0,0.02179123]
[1759756269982,0.4599,4589.2,4589.1,4.6480765]
[1759756270567,0.4599,4589.2,4589.1,2.469]
[1759756270759,0.4599,4589.5,4589.1,2.49079076]
[1759756270964,0.4599,4589.4,4589.1,2.49079076]
[1759756271283,0.4599,4589.3,4589.1,4.66986275]
[1759756271581,0.4599,4589.3,4589.1,2.469]
[1759756271753,0.1088,4589.8,4589.2,0.02179029]
[1759756272076,3.07102243,4589.7,4589.3,2.47]
[1759756272277,2.63878514,4589.6,4589.3,2.47]
[1759756272662,0.4599,4589.5,4589.3,2.47]
[1759756273063,2.63883406,4589.4,4589.3,2.47]
[1759756273380,0.74665801,4589.4,4589.3,2.469]
[1759756273546,0.4599,4589.4,4589.3,2.469]
[1759756273745,0.4599,4589.4,4589.3,2.5778]
[1759756277603,0.4599,4589.4,4589.3,0.1088]
[1759756277900,2.74744926,4589.8,4589.3,2.5778]
[1759756278197,2.63869572,4589.7,4589.3,2.5778]
[1759756278400,0.73464957,4589.7,4589.3,2.5778]
[1759756278701,0.4599,4589.7,4589.3,2.5778]
[1759756279210,0.4599,4589.7,4589.4,0.02178934]
[1759756279416,0.1088,4589.8,4589.3,2.5778]
[1759756279417,0.4599,4589.6,4589.5,2.468]
[1759756281072,2.74745405,4589.8,4589.5,2.468]
[1759756281380,0.4599,4589.7,4589.5,2.468]
[1759756281993,0.49280688,4589.8,4589.6,0.02178839]
[1759756282198,0.4619,4589.9,4589.5,2.468]
[1759756282199,2.64060541,4589.9,4589.5,2.468]
[1759756282696,2.64060541,4589.9,4589.6,0.02178839]
[1759756282874,0.4599,4589.8,4589.5,2.468]
[1759756283205,2.17883911,4589.6,4589.5,2.468]
[1759756284006,0.4619,4589.9,4589.5,2.468]
[1759756284301,0.4599,4589.8,4589.5,2.468]
[1759756284508,2.63864784,4589.8,4589.5,2.468]
[1759756284887,0.4599,4589.8,4589.5,2.468]
[1759756285411,2.17883911,4589.6,4589.5,2.468]
[1759756285614,2.17875412,4589.8,4589.5,2.468]
[1759756285780,0.24556802,4589.7,4589.5,2.468]
[1759756286210,2.42436841,4589.7,4589.5,2.468]
[1759756286504,2.17883911,4589.6,4589.5,2.468]
[1759756287232,2.63869542,4589.7,4589.5,2.468]
[1759756287381,2.63873911,4589.6,4589.5,2.468]
[1759756288311,2.8599,4589.6,4589.5,2.468]
[1759756288811,2.4,4589.6,4589.5,2.468]
[1759756289380,2.4,4589.5,4589.3,0.1088]
[1759756289585,2.17875172,4589.8,4589.4,2.469]
[1759756289787,2.93155778,4589.7,4589.5,2.469]
[1759756289985,2.93075778,4589.7,4589.5,2.469]
[1759756290416,0.53075778,4589.7,4589.5,2.469]
[1759756290714,2.17875963,4589.8,4589.5,2.469]
[1759756291416,2.17880373,4589.7,4589.5,2.469]
[1759756291812,5.03873911,4589.6,4589.5,2.469]
[1759756292313,2.4,4589.5,4589.3,0.1088]
[1759756292613,2.63873911,4589.6,4589.4,2.469]
[1759756292614,2.17883911,4589.6,4589.4,2.469]
[1759756292917,2.17880234,4589.7,4589.4,2.469]
[1759756293420,0.27692605,4589.9,4589.4,2.469]
[1759756293713,0.27692605,4589.9,4589.4,2.9246]
[1759756293913,0.27692605,4589.9,4589.5,0.02178886]
[1759756294212,0.002,4589.9,4589.5,0.02178886]
[1759756294694,2.18070562,4589.9,4589.4,2.469]
[1759756294899,2.18070562,4589.9,4589.5,0.4468]
[1759756295216,0.002,4589.9,4589.6,0.02178839]
[1759756295406,0.002,4589.9,4589.6,0.57738839]
[1759756295713,0.002,4589.9,4589.6,0.13058839]
[1759756295900,0.002,4589.9,4589.6,0.1088]
[1759756296417,0.002,4589.9,4589.6,0.5556]
[1759756298617,0.002,4589.9,4589.7,0.02178791]
[1759756298786,0.002,4589.9,4589.8,2.468]
[1759756299389,0.002,4589.9,4589.8,3.0236]
[1759756299590,0.002,4589.9,4589.8,2.5768]
[1759756300187,0.002,4589.9,4589.8,0.1088]
[1759756300390,0.002,4589.9,4589.8,2.5768]
[1759756300586,0.002,4589.9,4589.8,0.1088]
[1759756300831,0.002,4589.9,4589.8,2.5768]
[1759756300992,2.6254967,4589.9,4589.8,2.5768]
[1759756301316,0.4468,4589.9,4589.8,2.5768]
[1759756301617,0.002,4589.9,4589.8,0.1088]
[1759756301988,0.002,4589.9,4589.8,2.5758]
[1759756302592,0.002,4589.9,4589.8,0.1088]
[1759756302785,0.4468,4589.9,4589.8,2.5758]
[1759756303006,0.002,4589.9,4589.8,2.5758]
[1759756303387,0.002,4589.9,4589.8,0.1088]
[1759756303699,0.002,4589.9,4589.8,2.467]
[1759756303906,0.002,4589.9,4589.6,0.1088]
[1759756304110,0.002,4589.9,4589.7,2.467]
[1759756304316,0.4448,4589.8,4588.5,1.56620386]
[1759756304594,2.17891284,4589.5,4588.6,5.11589858]
[1759756304819,2.17891284,4589.5,4588.6,5.09410545]
[1759756304820,2.17893674,4589.4,4588.6,5.09410545]
[1759756305131,2.1790491,4589.2,4588.7,0.02179266]
[1759756305424,2.17898727,4589.3,4588.7,0.02179266]
[1759756305594,2.17904783,4589.2,4588.7,0.02179266]
[1759756305795,0.4448,4589.5,4588.6,2.9148]
[1759756305995,2.17912898,4589.0,4588.6,2.9148]
[1759756306195,2.17907657,4589.1,4588.6,2.9148]